fUSD/lending_fUSD_20260612
["ID","MTS","AMOUNT","RATE_DAILY","PERIOD"]
[424856083,1781207448000,-279.0,0.00034157,30]
[424856086,1781207448000,-327.0,0.00034157,30]
[424856085,1781207448000,-880.0,0.00034157,30]
[424856089,1781207448000,-364.0,0.00034157,30]
[424856088,1781207448000,-802.0,0.00034157,30]
[424856090,1781207448000,-389.0,0.00034163,30]
[424856094,1781207448000,-1183.3,0.00034182,7]
[424856091,1781207448000,-1292.0,0.00034163,30]
[424856093,1781207448000,-199.0,0.00034163,30]
[424856098,1781207448000,-264.11006,0.00034273,21]
[424856084,1781207448000,-255.0,0.00034157,30]
[424856095,1781207448000,-167.46807175,0.00034186,2]
[424856097,1781207448000,-1570.0,0.00034247,30]
[424856108,1781207448000,-834.28394638,0.00034493,2]
[424856103,1781207448000,-10624.1020305,0.00034406,2]
[424856101,1781207448000,-673.2479,0.00034378,120]
[424856104,1781207448000,-407.0,0.00034453,2]
[424856107,1781207448000,-202.8,0.00034482,120]
[424856106,1781207448000,-407.0,0.00034453,2]
[424856099,1781207448000,-1000.0,0.00034294,120]
[424856100,1781207448000,-150.0,0.00034337,120]
[424856096,1781207448000,-179.19,0.00034246,30]
[424856092,1781207448000,-241.0,0.00034163,30]
[424856110,1781207448000,-250.0,0.00034493,7]
[424856180,1781207449000,-250.02,0.00034946,120]
[424856174,1781207449000,-1500.0,0.000349,7]
[424856175,1781207449000,-200.0,0.000349,10]
[424856168,1781207449000,-800.0,0.0003489,13]
[424856178,1781207449000,-200.0,0.000349,12]
[424856171,1781207449000,-4488.0404,0.00034896,2]
[424856172,1781207449000,-3897.961,0.00034896,2]
[424856170,1781207449000,-800.0,0.0003489,13]
[424856176,1781207449000,-700.0,0.000349,12]
[424856173,1781207449000,-286.0,0.000349,120]
[424856179,1781207449000,-383.45,0.00034931,5]
[424856177,1781207449000,-400.0,0.000349,12]
[424856182,1781207449000,-400.0,0.00034952,2]
[424856185,1781207449000,-700.0,0.0003497,2]
[424856183,1781207449000,-215.0,0.00034953,3]
[424856188,1781207449000,-400.0,0.0003497,2]
[424856189,1781207449000,-670.555812,0.00034978,120]
[424856184,1781207449000,-15129.0,0.00034953,10]
[424856187,1781207449000,-700.0,0.0003497,2]
[424856186,1781207449000,-400.0,0.0003497,2]
[424856190,1781207449000,-160.01756654,0.00035,120]
[424856191,1781207449000,-174.29170218,0.00035,7]
[424856203,1781207449000,-1590.0,0.00035,7]
[424856201,1781207449000,-37154.77266569,0.00035,7]
[424856202,1781207449000,-150.0,0.00035,7]
[424856169,1781207449000,-800.0,0.0003489,13]
[424856181,1781207449000,-400.0,0.00034952,2]
[424856165,1781207449000,-800.0,0.0003489,13]
[424856141,1781207449000,-301.293,0.00034761,2]
[424856157,1781207449000,-200.0,0.000348,12]
[424856144,1781207449000,-170.36,0.00034772,120]
[424856138,1781207449000,-700.0,0.000347,12]
[424856142,1781207449000,-300.0,0.00034772,10]
[424856140,1781207449000,-158.2145375,0.00034752,2]
[424856143,1781207449000,-154.18,0.00034772,120]
[424856139,1781207449000,-200.0,0.000347,12]
[424856145,1781207449000,-4488.0404,0.00034773,2]
[424856146,1781207449000,-3897.961,0.00034773,2]
[424856148,1781207449000,-1273.96846777,0.00034777,7]
[424856147,1781207449000,-300.0,0.00034776,10]
[424856150,1781207449000,-1395.20377704,0.00034777,7]
[424856149,1781207449000,-1428.7529369,0.00034777,7]
[424856166,1781207449000,-800.0,0.0003489,13]
[424856151,1781207449000,-1328.5301373,0.00034777,7]
[424856153,1781207449000,-1500.0,0.00034795,2]
[424856152,1781207449000,-1570.0,0.00034795,30]
[424856155,1781207449000,-700.0,0.000348,12]
[424856156,1781207449000,-400.0,0.000348,12]
[424856158,1781207449000,-1001.0,0.00034849,120]
[424856160,1781207449000,-800.0,0.0003489,13]
[424856161,1781207449000,-800.0,0.0003489,13]
[424856159,1781207449000,-800.0,0.0003489,13]
[424856162,1781207449000,-333.5629737,0.0003489,13]
[424856163,1781207449000,-800.0,0.0003489,13]
[424856167,1781207449000,-800.0,0.0003489,13]
[424856164,1781207449000,-800.0,0.0003489,13]
[424856154,1781207449000,-321.60449862,0.000348,30]
[424856192,1781207449000,-890.62491641,0.00035,120]
[424856196,1781207449000,-495.90018261,0.00035,120]
[424856194,1781207449000,-190.13471628,0.00035,120]
[424856226,1781207449000,-450.28,0.00035143,2]
[424856235,1781207449000,-206.0,0.00035157,30]
[424856241,1781207449000,-199.0,0.00035163,30]
[424856230,1781207449000,-248.0,0.00035157,30]
[424856237,1781207449000,-364.0,0.00035157,30]
[424856238,1781207449000,-389.0,0.00035163,30]
[424856233,1781207449000,-880.0,0.00035157,30]
[424856232,1781207449000,-255.0,0.00035157,30]
[424856240,1781207449000,-241.0,0.00035163,30]
[424856231,1781207449000,-279.0,0.00035157,30]
[424856234,1781207449000,-327.0,0.00035157,30]
[424856236,1781207449000,-802.0,0.00035157,30]
[424856225,1781207449000,-157.57217,0.0003512,62]
[424856239,1781207449000,-1292.0,0.00035163,30]
[424856251,1781207449000,-150.0,0.00035285,2]
[424856244,1781207449000,-813.528146,0.00035168,60]
[424856252,1781207449000,-150.0,0.00035285,2]
[424856245,1781207449000,-200.0,0.00035185,10]
[424856246,1781207449000,-1000.0,0.00035202,2]
[424856242,1781207449000,-3237.0,0.00035164,5]
[424856247,1781207449000,-1050.42853373,0.00035202,2]
[424856249,1781207449000,-3897.961,0.00035266,2]
[424856250,1781207449000,-667.719351,0.00035279,120]
[424856248,1781207449000,-4488.0404,0.00035266,2]
[424856193,1781207449000,-150.0,0.00035,7]
[424856254,1781207449000,-231.29,0.00035293,120]
[424856243,1781207449000,-2597.0,0.00035164,5]
[424856227,1781207449000,-4488.0404,0.00035143,2]
[424856253,1781207449000,-150.97091164,0.00035285,2]
[424856221,1781207449000,-2059.7771,0.00035102,2]
[424856223,1781207449000,-157.57217,0.0003512,62]
[424856199,1781207449000,-398.6606399,0.00035,120]
[424856200,1781207449000,-37154.77266569,0.00035,7]
[424856195,1781207449000,-800.0,0.00035,7]
[424856198,1781207449000,-596.12033419,0.00035,120]
[424856204,1781207449000,-37154.77266568,0.00035,7]
[424856207,1781207449000,-199.93762835,0.00035,5]
[424856206,1781207449000,-1076.49013041,0.00035,120]
[424856213,1781207449000,-200.0,0.00035,120]
[424856209,1781207449000,-1000.0,0.00035,14]
[424856205,1781207449000,-37154.77266568,0.00035,7]
[424856214,1781207449000,-256.15919192,0.00035,120]
[424856215,1781207449000,-60875.47965611,0.00035,120]
[424856197,1781207449000,-451.10348,0.00035,120]
[424856216,1781207449000,-4488.0404,0.00035019,2]
[424856208,1781207449000,-160.0,0.00035,120]
[424856222,1781207449000,-157.57216,0.0003512,62]
[424856228,1781207449000,-3897.961,0.00035143,2]
[424856219,1781207449000,-1570.0,0.00035068,30]
[424856229,1781207449000,-260.0,0.00035157,30]
[424856224,1781207449000,-157.57217,0.0003512,62]
[424856218,1781207449000,-158.2145375,0.00035026,2]
[424856217,1781207449000,-3897.961,0.00035019,2]
[424856211,1781207449000,-179.535904,0.00035,2]
[424856210,1781207449000,-1134.0,0.00035,7]
[424856212,1781207449000,-300.0,0.00035,10]
[424856220,1781207449000,-25185.8515619,0.000351,120]
[424856291,1781207450000,-1000.0,0.0003547,2]
[424856302,1781207450000,-520.76522277,0.0003547,2]
[424856289,1781207450000,-1000.0,0.0003547,2]
[424856288,1781207450000,-1000.0,0.0003547,2]
[424856287,1781207450000,-1000.0,0.0003547,2]
[424856285,1781207450000,-1000.0,0.0003547,2]
[424856283,1781207450000,-1000.0,0.0003547,2]
[424856286,1781207450000,-1000.0,0.0003547,2]
[424856292,1781207450000,-1000.0,0.0003547,2]
[424856290,1781207450000,-1000.0,0.0003547,2]
[424856284,1781207450000,-1000.0,0.0003547,2]
[424856296,1781207450000,-1000.0,0.0003547,2]
[424856294,1781207450000,-1000.0,0.0003547,2]
[424856298,1781207450000,-1000.0,0.0003547,2]
[424856297,1781207450000,-1000.0,0.0003547,2]
[424856295,1781207450000,-1000.0,0.0003547,2]
[424856299,1781207450000,-1000.0,0.0003547,2]
[424856300,1781207450000,-1000.0,0.0003547,2]
[424856301,1781207450000,-1008.79341403,0.0003547,2]
[424856303,1781207450000,-157.57217,0.0003547,67]
[424856307,1781207450000,-248.67532,0.00035473,7]
[424856306,1781207450000,-151.0,0.00035473,7]
[424856308,1781207450000,-157.635871,0.00035473,7]
[424856282,1781207450000,-1000.0,0.0003547,2]
[424856293,1781207450000,-1000.0,0.0003547,2]
[424856278,1781207450000,-1000.0,0.0003547,2]
[424856275,1781207450000,-700.0,0.0003547,2]
[424856281,1781207450000,-1000.0,0.0003547,2]
[424856313,1781207450000,-151.0,0.00035473,7]
[424856264,1781207450000,-150.0,0.000354,2]
[424856255,1781207450000,-255.54,0.00035293,120]
[424856258,1781207450000,-459.54652211,0.00035378,2]
[424856263,1781207450000,-3111.0,0.00035399,30]
[424856256,1781207450000,-158.2145375,0.000353,2]
[424856261,1781207450000,-4488.0404,0.00035389,2]
[424856262,1781207450000,-3897.961,0.00035389,2]
[424856259,1781207450000,-951.90566212,0.00035378,2]
[424856257,1781207450000,-3154.88520818,0.00035352,38]
[424856260,1781207450000,-161.70674204,0.00035386,2]
[424856280,1781207450000,-1000.0,0.0003547,2]
[424856276,1781207450000,-400.0,0.0003547,2]
[424856271,1781207450000,-100000.0,0.00035455,60]
[424856265,1781207450000,-286.0,0.000354,120]
[424856268,1781207450000,-500.0,0.00035435,2]
[424856272,1781207450000,-360.01,0.00035466,7]
[424856269,1781207450000,-100000.0,0.00035455,120]
[424856267,1781207450000,-2017.46127646,0.00035423,15]
[424856270,1781207450000,-100000.0,0.00035455,90]
[424856273,1781207450000,-700.0,0.0003547,2]
[424856274,1781207450000,-400.0,0.0003547,2]
[424856277,1781207450000,-1000.0,0.0003547,2]
[424856279,1781207450000,-1000.0,0.0003547,2]
[424856266,1781207450000,-443.09253187,0.000354,7]
[424856305,1781207450000,-197.110996,0.00035473,7]
[424856364,1781207450000,-160.27064532,0.00035484,30]
[424856310,1781207450000,-157.635871,0.00035473,7]
[424856341,1781207450000,-3629.5,0.00035484,30]
[424856343,1781207450000,-557.5788265,0.00035484,30]
[424856342,1781207450000,-160.0,0.00035484,30]
[424856339,1781207450000,-160.27064532,0.00035484,30]
[424856344,1781207450000,-151.0,0.00035484,30]
[424856345,1781207450000,-520.0,0.00035484,30]
[424856346,1781207450000,-151.0,0.00035484,30]
[424856347,1781207450000,-156.587,0.00035484,30]
[424856348,1781207450000,-151.0,0.00035484,30]
[424856349,1781207450000,-162.380719,0.00035484,30]
[424856350,1781207450000,-500.0,0.00035484,30]
[424856340,1781207450000,-154.12265554,0.00035484,30]
[424856352,1781207450000,-1201.65948645,0.00035484,30]
[424856355,1781207450000,-151.0,0.00035484,30]
[424856357,1781207450000,-500.0,0.00035484,30]
[424856356,1781207450000,-152.0,0.00035484,30]
[424856354,1781207450000,-151.0,0.00035484,30]
[424856360,1781207450000,-250.0,0.00035484,30]
[424856358,1781207450000,-151.0,0.00035484,30]
[424856359,1781207450000,-500.0,0.00035484,30]
[424856361,1781207450000,-1000.0,0.00035484,30]
[424856363,1781207450000,-151.0,0.00035484,30]
[424856362,1781207450000,-10000.0,0.00035484,30]
[424856304,1781207450000,-157.57216,0.0003547,67]
[424856353,1781207450000,-168.3888056,0.00035484,30]
[424856338,1781207450000,-1000.0,0.00035484,30]
[424856351,1781207450000,-160.15525447,0.00035484,30]
[424856335,1781207450000,-151.0,0.00035484,30]
[424856311,1781207450000,-157.635871,0.00035473,7]
[424856336,1781207450000,-151.0,0.00035484,30]
[424856309,1781207450000,-157.635871,0.00035473,7]
[424856312,1781207450000,-151.0,0.00035473,7]
[424856314,1781207450000,-10000.0,0.00035484,30]
[424856315,1781207450000,-160.0,0.00035484,30]
[424856316,1781207450000,-500.0,0.00035484,30]
[424856325,1781207450000,-250.0,0.00035484,30]
[424856320,1781207450000,-8938.70230887,0.00035484,30]
[424856319,1781207450000,-160.0,0.00035484,30]
[424856317,1781207450000,-250.0,0.00035484,30]
[424856318,1781207450000,-151.0,0.00035484,30]
[424856321,1781207450000,-518.5,0.00035484,30]
[424856324,1781207450000,-156.587,0.00035484,30]
[424856322,1781207450000,-160.15525447,0.00035484,30]
[424856329,1781207450000,-160.15525447,0.00035484,30]
[424856337,1781207450000,-250.0,0.00035484,30]
[424856328,1781207450000,-3500.0,0.00035484,30]
[424856332,1781207450000,-156.587,0.00035484,30]
[424856326,1781207450000,-151.0,0.00035484,30]
[424856333,1781207450000,-162.380719,0.00035484,30]
[424856331,1781207450000,-151.0,0.00035484,30]
[424856330,1781207450000,-537.6845,0.00035484,30]
[424856327,1781207450000,-160.0,0.00035484,30]
[424856323,1781207450000,-151.0,0.00035484,30]
[424856334,1781207450000,-151.0,0.00035484,30]
[424856406,1781207451000,-151.0,0.00035484,30]
[424856410,1781207451000,-151.0,0.00035484,30]
[424856407,1781207451000,-168.3888056,0.00035484,30]
[424856403,1781207451000,-559.19188,0.00035484,30]
[424856408,1781207451000,-151.0,0.00035484,30]
[424856402,1781207451000,-3000.0,0.00035484,30]
[424856400,1781207451000,-160.0,0.00035484,30]
[424856401,1781207451000,-3000.0,0.00035484,30]
[424856395,1781207451000,-156.587,0.00035484,30]
[424856399,1781207451000,-151.0,0.00035484,30]
[424856404,1781207451000,-200.0,0.00035484,30]
[424856405,1781207451000,-154.12265554,0.00035484,30]
[424856411,1781207451000,-500.0,0.00035484,30]
[424856415,1781207451000,-160.15525447,0.00035484,30]
[424856413,1781207451000,-500.0,0.00035484,30]
[424856421,1781207451000,-1201.65948645,0.00035484,30]
[424856422,1781207451000,-10000.0,0.00035484,30]
[424856414,1781207451000,-181.08010149,0.00035484,30]
[424856425,1781207451000,-1000.0,0.00035484,30]
[424856412,1781207451000,-174.61919141,0.00035484,30]
[424856417,1781207451000,-250.0,0.00035484,30]
[424856420,1781207451000,-500.0,0.00035484,30]
[424856416,1781207451000,-151.0,0.00035484,30]
[424856418,1781207451000,-152.0,0.00035484,30]
[424856423,1781207451000,-162.380719,0.00035484,30]
[424856424,1781207451000,-4047.46470156,0.00035484,30]
[424856397,1781207451000,-599.60298507,0.00035484,30]
[424856409,1781207451000,-500.0,0.00035484,30]
[424856398,1781207451000,-278.88022306,0.00035484,30]
[424856371,1781207451000,-151.0,0.00035484,30]
[424856393,1781207451000,-151.0,0.00035484,30]
[424856374,1781207451000,-539.24,0.00035484,30]
[424856368,1781207451000,-160.0,0.00035484,30]
[424856367,1781207451000,-3763.7915,0.00035484,30]
[424856365,1781207451000,-151.0,0.00035484,30]
[424856370,1781207451000,-151.0,0.00035484,30]
[424856369,1781207451000,-578.20924308,0.00035484,30]
[424856366,1781207451000,-155.57259517,0.00035484,30]
[424856373,1781207451000,-151.0,0.00035484,30]
[424856372,1781207451000,-154.12265554,0.00035484,30]
[424856376,1781207451000,-160.15525447,0.00035484,30]
[424856386,1781207451000,-151.0,0.00035484,30]
[424856377,1781207451000,-500.0,0.00035484,30]
[424856387,1781207451000,-1201.65948645,0.00035484,30]
[424856392,1781207451000,-156.587,0.00035484,30]
[424856375,1781207451000,-162.380719,0.00035484,30]
[424856379,1781207451000,-151.0,0.00035484,30]
[424856380,1781207451000,-174.61919141,0.00035484,30]
[424856381,1781207451000,-152.0,0.00035484,30]
[424856383,1781207451000,-518.5,0.00035484,30]
[424856382,1781207451000,-500.0,0.00035484,30]
[424856385,1781207451000,-250.0,0.00035484,30]
[424856378,1781207451000,-168.3888056,0.00035484,30]
[424856389,1781207451000,-200.0,0.00035484,30]
[424856391,1781207451000,-3903.0517855,0.00035484,30]
[424856390,1781207451000,-151.0,0.00035484,30]
[424856388,1781207451000,-10000.0,0.00035484,30]
[424856396,1781207451000,-155.57259517,0.00035484,30]
[424856394,1781207451000,-160.27064532,0.00035484,30]
[424856384,1781207451000,-1000.0,0.00035484,30]
[424856426,1781207451000,-151.0,0.00035484,30]
[424856419,1781207451000,-151.0,0.00035484,30]
[424856433,1781207451000,-162.380719,0.00035484,30]
[424856455,1781207451000,-155.18434343,0.00035484,30]
[424856460,1781207451000,-151.0,0.00035484,30]
[424856463,1781207451000,-181.08010149,0.00035484,30]
[424856458,1781207451000,-151.0,0.00035484,30]
[424856466,1781207451000,-151.0,0.00035484,30]
[424856465,1781207451000,-168.3888056,0.00035484,30]
[424856477,1781207451000,-187.78006524,0.00035484,30]
[424856467,1781207451000,-162.380719,0.00035484,30]
[424856476,1781207451000,-160.15525447,0.00035484,30]
[424856472,1781207451000,-500.0,0.00035484,30]
[424856471,1781207451000,-6888.0,0.00035484,30]
[424856470,1781207451000,-155.57259517,0.00035484,30]
[424856468,1781207451000,-500.0,0.00035484,30]
[424856462,1781207451000,-250.0,0.00035484,30]
[424856475,1781207451000,-154.12265554,0.00035484,30]
[424856473,1781207451000,-194.72792766,0.00035484,30]
[424856474,1781207451000,-152.0,0.00035484,30]
[424856479,1781207451000,-151.0,0.00035484,30]
[424856480,1781207451000,-500.0,0.00035484,30]
[424856478,1781207451000,-174.61919141,0.00035484,30]
[424856484,1781207451000,-187.78006524,0.00035484,30]
[424856481,1781207451000,-155.18434343,0.00035484,30]
[424856482,1781207451000,-1000.0,0.00035484,30]
[424856483,1781207451000,-500.0,0.00035484,30]
[424856485,1781207451000,-1201.65948645,0.00035484,30]
[424856429,1781207451000,-200.0,0.00035484,30]
[424856486,1781207451000,-200.0,0.00035484,30]
[424856488,1781207451000,-250.0,0.00035484,30]
[424856469,1781207451000,-160.0,0.00035484,30]
[424856461,1781207451000,-151.0,0.00035484,30]
[424856487,1781207451000,-151.0,0.00035484,30]
[424856459,1781207451000,-537.6845,0.00035484,30]
[424856457,1781207451000,-200.0,0.00035484,30]
[424856430,1781207451000,-151.0,0.00035484,30]
[424856432,1781207451000,-200.0,0.00035484,30]
[424856427,1781207451000,-160.27064532,0.00035484,30]
[424856436,1781207451000,-151.0,0.00035484,30]
[424856438,1781207451000,-174.61919141,0.00035484,30]
[424856435,1781207451000,-151.0,0.00035484,30]
[424856434,1781207451000,-3000.0,0.00035484,30]
[424856437,1781207451000,-621.78829552,0.00035484,30]
[424856431,1781207451000,-579.88197956,0.00035484,30]
[424856439,1781207451000,-155.57259517,0.00035484,30]
[424856441,1781207451000,-156.587,0.00035484,30]
[424856442,1781207451000,-500.0,0.00035484,30]
[424856440,1781207451000,-160.0,0.00035484,30]
[424856428,1781207451000,-155.18434343,0.00035484,30]
[424856443,1781207451000,-500.0,0.00035484,30]
[424856452,1781207451000,-1201.65948645,0.00035484,30]
[424856464,1781207451000,-644.79446245,0.00035484,30]
[424856456,1781207451000,-1000.0,0.00035484,30]
[424856453,1781207451000,-151.0,0.00035484,30]
[424856445,1781207451000,-6000.0,0.00035484,30]
[424856444,1781207451000,-154.12265554,0.00035484,30]
[424856454,1781207451000,-160.27064532,0.00035484,30]
[424856449,1781207451000,-152.0,0.00035484,30]
[424856448,1781207451000,-160.15525447,0.00035484,30]
[424856447,1781207451000,-187.78006524,0.00035484,30]
[424856450,1781207451000,-168.3888056,0.00035484,30]
[424856451,1781207451000,-151.0,0.00035484,30]
[424856446,1781207451000,-181.08010149,0.00035484,30]
[424856529,1781207452000,-151.0,0.00035484,30]
[424856533,1781207452000,-160.27064532,0.00035484,30]
[424856527,1781207452000,-601.3376128,0.00035484,30]
[424856525,1781207452000,-200.0,0.00035484,30]
[424856522,1781207452000,-557.5788265,0.00035484,30]
[424856526,1781207452000,-7407.141672,0.00035484,30]
[424856519,1781207452000,-151.0,0.00035484,30]
[424856518,1781207452000,-10000.0,0.00035484,30]
[424856516,1781207452000,-250.0,0.00035484,30]
[424856530,1781207452000,-201.93286098,0.00035484,30]
[424856524,1781207452000,-160.15525447,0.00035484,30]
[424856512,1781207452000,-500.0,0.00035484,30]
[424856540,1781207452000,-578.20924308,0.00035484,30]
[424856528,1781207452000,-154.12265554,0.00035484,30]
[424856523,1781207452000,-155.57259517,0.00035484,30]
[424856531,1781207452000,-500.0,0.00035484,30]
[424856541,1781207452000,-333.81194748,0.00035484,30]
[424856543,1781207452000,-160.15525447,0.00035484,30]
[424856544,1781207452000,-151.0,0.00035484,30]
[424856542,1781207452000,-4513.56123719,0.00035484,30]
[424856534,1781207452000,-500.0,0.00035484,30]
[424856535,1781207452000,-152.0,0.00035484,30]
[424856538,1781207452000,-151.0,0.00035484,30]
[424856537,1781207452000,-201.93286098,0.00035484,30]
[424856517,1781207452000,-174.61919141,0.00035484,30]
[424856532,1781207452000,-1000.0,0.00035484,30]
[424856514,1781207452000,-194.72792766,0.00035484,30]
[424856502,1781207452000,-160.27064532,0.00035484,30]
[424856515,1781207452000,-1201.65948645,0.00035484,30]
[424856536,1781207452000,-2651.52208296,0.00035484,30]
[424856490,1781207452000,-10000.0,0.00035484,30]
[424856489,1781207452000,-668.65185757,0.00035484,30]
[424856498,1781207452000,-7142.856,0.00035484,30]
[424856497,1781207452000,-4197.22089552,0.00035484,30]
[424856491,1781207452000,-168.3888056,0.00035484,30]
[424856494,1781207452000,-155.57259517,0.00035484,30]
[424856493,1781207452000,-151.0,0.00035484,30]
[424856496,1781207452000,-200.0,0.00035484,30]
[424856492,1781207452000,-500.0,0.00035484,30]
[424856495,1781207452000,-161.46095509,0.00035484,30]
[424856500,1781207452000,-174.61919141,0.00035484,30]
[424856499,1781207452000,-201.93286098,0.00035484,30]
[424856501,1781207452000,-152.0,0.00035484,30]
[424856507,1781207452000,-1870.65466908,0.00035484,30]
[424856508,1781207452000,-151.0,0.00035484,30]
[424856505,1781207452000,-500.0,0.00035484,30]
[424856504,1781207452000,-154.12265554,0.00035484,30]
[424856509,1781207452000,-155.18434343,0.00035484,30]
[424856506,1781207452000,-194.72792766,0.00035484,30]
[424856503,1781207452000,-288.41545022,0.00035484,30]
[424856511,1781207452000,-151.0,0.00035484,30]
[424856521,1781207452000,-4352.51806865,0.00035484,30]
[424856510,1781207452000,-1000.0,0.00035484,30]
[424856513,1781207452000,-151.0,0.00035484,30]
[424856520,1781207452000,-200.0,0.00035484,30]
[424856539,1781207452000,-181.08010149,0.00035484,30]
[424856587,1781207452000,-500.0,0.00035484,30]
[424856546,1781207452000,-7681.20591386,0.00035484,30]
[424856581,1781207452000,-500.0,0.00035484,30]
[424856573,1781207452000,-500.0,0.00035484,30]
[424856575,1781207452000,-646.65982734,0.00035484,30]
[424856574,1781207452000,-155.57259517,0.00035484,30]
[424856577,1781207452000,-151.0,0.00035484,30]
[424856592,1781207452000,-151.0,0.00035484,30]
[424856582,1781207452000,-1201.65948645,0.00035484,30]
[424856590,1781207452000,-8260.13072238,0.00035484,30]
[424856591,1781207452000,-160.15525447,0.00035484,30]
[424856589,1781207452000,-194.72792766,0.00035484,30]
[424856588,1781207452000,-191.97348511,0.00035484,30]
[424856585,1781207452000,-160.27064532,0.00035484,30]
[424856583,1781207452000,-621.78829552,0.00035484,30]
[424856601,1781207452000,-152.0,0.00035484,30]
[424856586,1781207452000,-2287.58423773,0.00035484,30]
[424856584,1781207452000,-1000.0,0.00035484,30]
[424856593,1781207452000,-151.0,0.00035484,30]
[424856595,1781207452000,-194.72792766,0.00035484,30]
[424856598,1781207452000,-151.0,0.00035484,30]
[424856594,1781207452000,-670.58624095,0.00035484,30]
[424856596,1781207452000,-155.57259517,0.00035484,30]
[424856600,1781207452000,-151.0,0.00035484,30]
[424856597,1781207452000,-500.0,0.00035484,30]
[424856602,1781207452000,-644.79446245,0.00035484,30]
[424856599,1781207452000,-500.0,0.00035484,30]
[424856576,1781207452000,-151.0,0.00035484,30]
[424856571,1781207452000,-151.0,0.00035484,30]
[424856555,1781207452000,-209.40437684,0.00035484,30]
[424856579,1781207452000,-217.15233878,0.00035484,30]
[424856572,1781207452000,-187.78006524,0.00035484,30]
[424856554,1781207452000,-623.58710447,0.00035484,30]
[424856547,1781207452000,-181.08010149,0.00035484,30]
[424856545,1781207452000,-209.37652795,0.00035484,30]
[424856548,1781207452000,-500.0,0.00035484,30]
[424856550,1781207452000,-151.0,0.00035484,30]
[424856551,1781207452000,-151.0,0.00035484,30]
[424856553,1781207452000,-500.0,0.00035484,30]
[424856552,1781207452000,-154.12265554,0.00035484,30]
[424856557,1781207452000,-151.0,0.00035484,30]
[424856556,1781207452000,-151.0,0.00035484,30]
[424856569,1781207452000,-151.0,0.00035484,30]
[424856568,1781207452000,-160.15525447,0.00035484,30]
[424856549,1781207452000,-155.57259517,0.00035484,30]
[424856558,1781207452000,-1000.0,0.00035484,30]
[424856567,1781207452000,-7965.41053267,0.00035484,30]
[424856578,1781207452000,-151.0,0.00035484,30]
[424856570,1781207452000,-151.0,0.00035484,30]
[424856564,1781207452000,-160.27064532,0.00035484,30]
[424856563,1781207452000,-599.60298507,0.00035484,30]
[424856580,1781207452000,-152.0,0.00035484,30]
[424856566,1781207452000,-4680.56300297,0.00035484,30]
[424856561,1781207452000,-151.0,0.00035484,30]
[424856565,1781207452000,-187.78006524,0.00035484,30]
[424856560,1781207452000,-225.18697534,0.00035484,30]
[424856559,1781207452000,-500.0,0.00035484,30]
[424856562,1781207452000,-500.0,0.00035484,30]
[424856626,1781207453000,-151.0,0.00035484,30]
[424856627,1781207453000,-8882.6885148,0.00035484,30]
[424856629,1781207453000,-721.12765534,0.00035484,30]
[424856632,1781207453000,-500.0,0.00035484,30]
[424856630,1781207453000,-500.0,0.00035484,30]
[424856633,1781207453000,-152.0,0.00035484,30]
[424856631,1781207453000,-151.0,0.00035484,30]
[424856634,1781207453000,-151.0,0.00035484,30]
[424856636,1781207453000,-500.0,0.00035484,30]
[424856635,1781207453000,-151.0,0.00035484,30]
[424856637,1781207453000,-1201.65948645,0.00035484,30]